bitfinex/quotes_BTCUSD_20250826
["timestamp","ask_amount","ask_price","bid_price","bid_amount"]
[1756226424249,0.18299444,109980.0,109970.0,0.2783798]
[1756226424778,0.0011432,109980.0,109970.0,0.2783798]
[1756226425533,0.0011432,109980.0,109970.0,0.8352069]
[1756226425775,0.0011432,109980.0,109970.0,0.9776865]
[1756226426010,0.0011432,109980.0,109970.0,1.0050225]
[1756226426701,0.0011432,109980.0,109970.0,1.0060225]
[1756226426942,0.0011432,109980.0,109970.0,0.9335029]
[1756226427162,0.0011432,109980.0,109970.0,1.0909829]
[1756226427676,0.0001432,109980.0,109970.0,1.0909829]
[1756226427908,0.0001432,109980.0,109970.0,1.0929829]
[1756226428140,0.0001432,109980.0,109970.0,0.9355029]
[1756226428355,0.0001432,109980.0,109970.0,1.0930229]
[1756226429964,0.0001432,109980.0,109970.0,1.0929429]
[1756226430172,0.0001432,109980.0,109970.0,0.9355029]
[1756226430368,0.0001432,109980.0,109970.0,1.0928229]
[1756226431294,0.0002,109990.0,109980.0,0.53930026]
[1756226431504,1.2604,110000.0,109990.0,1.07866181]
[1756226431748,1.25715,110000.0,109990.0,1.33253383]
[1756226431959,1.25762732,110000.0,109990.0,1.34266949]
[1756226433190,1.25762732,110000.0,109990.0,1.18526949]
[1756226433405,1.25762732,110000.0,109990.0,1.32904438]
[1756226433825,1.25762732,110000.0,109990.0,1.35637338]
[1756226434022,1.25762732,110000.0,109990.0,1.35837338]
[1756226434480,1.25762732,110000.0,109990.0,1.36037338]
[1756226435953,1.25762732,110000.0,109990.0,1.20297338]
[1756226436155,1.25762732,110000.0,109990.0,1.36033338]
[1756226436359,1.25762732,110000.0,109990.0,1.4020255]
[1756226436671,1.25762732,110000.0,109990.0,0.85882351]
[1756226436876,1.25762732,110000.0,109990.0,1.4020255]
[1756226437096,1.25762732,110000.0,109990.0,1.6666255]
[1756226438319,1.25762732,110000.0,109990.0,0.96610351]
[1756226438543,1.25762732,110000.0,109990.0,1.6666255]
[1756226440545,1.25967732,110000.0,109990.0,0.61596785]
[1756226440763,1.25967732,110000.0,109990.0,0.58362885]
[1756226440972,1.26262732,110000.0,109990.0,0.74617885]
[1756226442196,1.26262732,110000.0,109990.0,0.74621885]
[1756226443061,1.26262732,110000.0,109990.0,1.02482084]
[1756226443704,1.26262732,110000.0,109990.0,0.48161885]
[1756226443924,1.26262732,110000.0,109990.0,1.02482084]
[1756226445019,1.26262732,110000.0,109990.0,1.36482084]
[1756226446922,1.26262732,110000.0,109990.0,0.82161885]
[1756226447119,1.26262732,110000.0,109990.0,1.36482084]
[1756226448990,1.26262732,110000.0,109990.0,1.62942084]
[1756226451089,1.26262732,110000.0,109990.0,1.65674884]
[1756226452149,1.05493385,110000.0,109990.0,1.65674884]
[1756226452354,1.05493385,110000.0,109990.0,1.49942884]
[1756226452504,1.05493385,110000.0,109990.0,1.65658884]
[1756226453761,1.05698385,110000.0,109990.0,1.65131884]
[1756226453936,1.05493385,110000.0,109990.0,1.65654884]
[1756226455408,1.06344836,110000.0,109990.0,1.66963521]
[1756226456039,1.06549836,110000.0,109990.0,0.90268521]
[1756226456252,1.25024654,110000.0,109990.0,0.31906885]
[1756226456463,1.8065349,110000.0,109990.0,0.29467414]
[1756226456674,1.8065349,110000.0,109990.0,0.47650885]
[1756226456675,1.26990906,110000.0,109990.0,0.47650885]
[1756226457334,1.25024654,110000.0,109990.0,0.47450885]
[1756226457480,1.25024654,110000.0,109990.0,0.29267414]
[1756226457695,1.25024654,110000.0,109990.0,0.47450885]
[1756226457926,1.25024654,110000.0,109990.0,0.29067414]
[1756226458129,1.25024654,110000.0,109990.0,0.47250885]
[1756226458325,1.25019551,110000.0,109990.0,0.47250885]
[1756226458572,1.25019551,110000.0,109990.0,0.24986202]
[1756226458757,1.25002055,110000.0,109990.0,0.43169673]
[1756226459367,1.06747337,110000.0,109990.0,0.47246195]
[1756226459644,1.06249337,110000.0,109990.0,1.03077031]
[1756226459771,1.06249337,110000.0,109990.0,1.03398031]
[1756226459977,1.06747337,110000.0,109990.0,0.13322724]
[1756226460311,1.06425177,110000.0,109990.0,0.47238195]
[1756226460658,1.06388727,110000.0,109990.0,0.47238195]
[1756226460893,1.06389573,110000.0,109990.0,0.47238195]
[1756226461084,1.06389573,110000.0,109990.0,0.47440195]
[1756226461360,1.06367703,110000.0,109990.0,0.47440195]
[1756226461824,1.06367703,110000.0,109990.0,0.47238195]
[1756226462464,1.06367703,110000.0,109990.0,0.47440195]
[1756226463351,1.06367703,110000.0,109990.0,0.47238195]
[1756226463566,0.82425272,110000.0,109990.0,0.47238195]
[1756226464443,1.0090009,110000.0,109990.0,0.47238195]
[1756226465967,1.0060709,110000.0,109990.0,0.47238195]
[1756226467143,1.0090109,110000.0,109990.0,0.47202195]
[1756226467625,1.0090109,110000.0,109990.0,0.29018724]
[1756226468155,1.0090109,110000.0,109990.0,0.04176522]
[1756226468487,1.56529926,110000.0,109990.0,0.001]
[1756226468690,1.56529926,110000.0,109990.0,0.15792]
[1756226468892,1.57525569,110000.0,109990.0,0.15792]
[1756226469341,1.57525569,110000.0,109990.0,0.19807477]
[1756226469518,1.36763587,110000.0,109990.0,0.19807477]
[1756226470008,1.70763587,110000.0,109990.0,0.15792]
[1756226470214,1.70763187,110000.0,109990.0,0.001]
[1756226470420,1.88413137,110000.0,109990.0,0.001]
[1756226470850,1.88412952,110000.0,109990.0,0.001]
[1756226472013,0.18183471,109990.0,109980.0,0.15692]
[1756226472207,0.01066712,109990.0,109980.0,0.43235326]
[1756226472427,0.94571811,110000.0,109980.0,0.99175162]
[1756226472718,0.9542281,110000.0,109990.0,0.00227293]
[1756226473120,0.7995381,110000.0,109990.0,0.00227293]
[1756226473318,0.7985381,110000.0,109990.0,0.00227293]
[1756226475005,0.8014781,110000.0,109990.0,0.00227293]
[1756226475622,0.7985381,110000.0,109990.0,0.00227293]
[1756226476490,0.79002811,110000.0,109990.0,0.00227293]
[1756226477275,0.78787811,110000.0,109990.0,0.18933764]
[1756226477493,0.78787811,110000.0,109990.0,0.18706471]
[1756226477857,0.79002811,110000.0,109990.0,0.18706471]
[1756226478264,0.60605993,110000.0,109990.0,0.82205828]
[1756226478863,0.60605993,110000.0,109990.0,0.83226744]
[1756226479495,0.60605993,110000.0,109990.0,0.90218744]
[1756226479687,0.60605993,110000.0,109990.0,0.90418744]
[1756226480711,0.60820993,110000.0,109990.0,0.50421673]
[1756226480912,0.60605993,110000.0,109990.0,0.50732673]
[1756226481127,0.60605993,110000.0,109990.0,0.51944879]
[1756226482202,0.60605993,110000.0,109990.0,0.50932673]
[1756226483328,0.79002811,110000.0,109990.0,0.34933673]
[1756226483532,0.79002811,110000.0,109990.0,0.32214202]
[1756226483733,0.79296811,110000.0,109990.0,0.32214202]
[1756226483954,0.79002811,110000.0,109990.0,0.32214202]
[1756226484154,0.79002811,110000.0,109990.0,0.34721673]
[1756226484312,0.79002811,110000.0,109990.0,0.50397673]
[1756226484517,0.79002811,110000.0,109990.0,0.16538202]
[1756226484760,0.79002811,110000.0,109990.0,0.32222202]
[1756226485454,0.79002811,110000.0,109990.0,0.50405673]
[1756226485877,0.79002811,110000.0,109990.0,0.32222202]
[1756226486224,0.79002811,110000.0,109990.0,0.50405673]
[1756226486667,0.79002811,110000.0,109990.0,0.16538202]
[1756226486891,0.79296811,110000.0,109990.0,0.32222202]
[1756226487090,0.79002811,110000.0,109990.0,0.32222202]
[1756226487902,0.79002811,110000.0,109990.0,0.09546202]
[1756226488080,0.79002811,110000.0,109990.0,0.25214202]
[1756226488286,0.79296811,110000.0,109990.0,0.25214202]
[1756226488491,0.79296811,110000.0,109990.0,0.16068]
[1756226488492,1.33649966,110000.0,109990.0,0.16068]
[1756226488888,0.79296811,110000.0,109990.0,0.16068]
[1756226489095,1.33649966,110000.0,109990.0,0.004]
[1756226489302,1.33649966,110000.0,109990.0,0.16068]
[1756226489911,1.33649966,110000.0,109990.0,0.004]
[1756226490108,0.60605993,110000.0,109990.0,0.98265828]
[1756226491804,0.60605993,110000.0,109990.0,0.43912673]
[1756226492736,0.35663148,110000.0,109990.0,0.43912673]
[1756226494245,0.35663148,110000.0,109990.0,0.98265828]
[1756226496553,0.35663148,110000.0,109990.0,1.32265828]
[1756226501748,1e-08,110000.0,109990.0,1.88363885]
[1756226502018,1e-08,110000.0,109990.0,2.17952885]
[1756226502240,1e-08,110000.0,109990.0,1.6359973]
[1756226503051,1e-08,110000.0,109990.0,2.0359973]
[1756226503187,1e-08,110000.0,109990.0,1.49246575]
[1756226503394,1e-08,110000.0,109990.0,2.85263975]
[1756226503599,1e-08,110010.0,110000.0,0.38181818]
[1756226503826,1e-08,110010.0,110000.0,2.1085342]
[1756226504068,1e-08,110010.0,110000.0,1.7200172]
[1756226504237,1e-08,110010.0,110000.0,2.1200172]
[1756226505304,1e-08,110010.0,110000.0,1.5725732]
[1756226505501,1e-08,110010.0,110000.0,1.2161332]
[1756226505727,1e-08,110010.0,110000.0,0.9641332]
[1756226505938,1e-08,110010.0,110000.0,1.18802222]
[1756226506139,1e-08,110010.0,110000.0,0.93902222]
[1756226506347,1e-08,110010.0,110000.0,0.78258222]
[1756226506553,1e-08,110010.0,110000.0,0.7561332]
[1756226506753,1e-08,110010.0,110000.0,1.39555046]
[1756226506962,1e-08,110010.0,110000.0,0.8525732]
[1756226509122,1e-08,110010.0,110000.0,0.87002222]
[1756226510989,1e-08,110010.0,110000.0,0.8525732]
[1756226512109,1e-08,110010.0,110000.0,0.87002222]
[1756226512731,1e-08,110010.0,110000.0,1.41299948]
[1756226512980,1e-08,110010.0,110000.0,0.87002222]
[1756226513845,1e-08,110010.0,110000.0,2.26299948]
[1756226515063,1e-08,110010.0,110000.0,2.26199948]
[1756226515265,0.0004,110020.0,110010.0,1.26477891]
[1756226515445,0.00048,110030.0,110020.0,1.0822114]
[1756226515647,0.00052769,110030.0,110020.0,1.33224342]
[1756226515838,0.00052769,110030.0,110020.0,1.33540342]
[1756226516449,0.00052769,110030.0,110020.0,1.33904542]
[1756226516894,0.00052769,110030.0,110020.0,1.34004542]
[1756226518460,0.00052769,110030.0,110020.0,1.33904542]
[1756226518893,0.00052769,110030.0,110020.0,1.34004542]
[1756226519128,0.00052769,110030.0,110020.0,1.33904542]
[1756226519329,0.00052769,110030.0,110020.0,1.34004542]
[1756226520760,0.00052769,110030.0,110020.0,1.34993177]
[1756226521633,0.00250769,110030.0,110020.0,0.62777549]
[1756226521845,0.00564769,110030.0,110020.0,0.43064714]
[1756226522478,0.00250769,110030.0,110020.0,0.43064714]
[1756226522895,0.00564769,110030.0,110020.0,0.43064714]
[1756226525938,0.00564769,110030.0,110020.0,0.27424714]
[1756226526164,0.00052769,110030.0,110020.0,0.43593714]
[1756226526310,0.00262769,110030.0,110020.0,0.43064714]
[1756226526880,0.00561769,110030.0,110020.0,0.27424714]
[1756226527091,0.00561769,110030.0,110020.0,0.43064714]
[1756226527298,0.73036355,110030.0,110020.0,0.27424714]
[1756226527483,0.75220819,110030.0,110020.0,0.33930512]
[1756226528886,0.00904105,110030.0,110020.0,0.43282714]
[1756226529086,0.01100105,110030.0,110020.0,0.43076714]
[1756226529708,0.00248769,110030.0,110020.0,0.43076714]
[1756226529888,0.00248769,110030.0,110020.0,0.43282714]
[1756226530040,0.00248769,110030.0,110020.0,0.43076714]
[1756226530442,0.00052769,110030.0,110020.0,0.99234568]
[1756226530863,0.00052769,110030.0,110020.0,0.43603714]
[1756226531052,0.00052769,110030.0,110020.0,0.24902202]
[1756226531053,0.18724629,110030.0,110020.0,0.24902202]
[1756226531241,0.56178623,110030.0,110020.0,0.43080714]
[1756226531613,0.74355483,110030.0,110020.0,0.27424714]
[1756226531794,0.74355483,110030.0,110020.0,0.33942512]
[1756226532294,0.75207385,110030.0,110020.0,0.33942512]
[1756226532497,0.75207521,110030.0,110020.0,0.33942512]
[1756226533507,0.19576667,110030.0,110020.0,0.33942512]
[1756226533755,0.73901033,110030.0,110020.0,0.33942512]
[1756226534139,0.73901033,110030.0,110020.0,0.18278512]
[1756226534356,0.73048995,110030.0,110020.0,0.33930512]
[1756226536134,0.49585588,110030.0,110020.0,0.33930512]
[1756226536363,0.67762448,110030.0,110020.0,0.33930512]
[1756226536772,0.72539812,110040.0,110030.0,0.1817686]
[1756226536948,0.73391718,110040.0,110030.0,0.1817686]
[1756226537111,0.73391718,110040.0,110020.0,0.34251512]
[1756226537863,0.1817686,110030.0,110020.0,0.34151512]
[1756226538212,0.72639812,110040.0,110030.0,0.1817686]
[1756226538412,0.73491667,110040.0,110030.0,0.1817686]
[1756226538891,0.73491667,110040.0,110020.0,0.33830512]
[1756226539306,0.73391667,110040.0,110020.0,0.33830512]
[1756226539543,0.73391667,110040.0,110020.0,0.34151512]
[1756226539976,0.73391667,110040.0,110030.0,0.1817686]
[1756226540181,0.73391643,110040.0,110020.0,0.34151512]
[1756226541014,0.73391643,110040.0,110030.0,0.1817686]
[1756226541512,0.73491643,110040.0,110020.0,0.34151512]
[1756226541717,0.73491643,110040.0,110030.0,0.1817686]
[1756226541949,0.73391643,110040.0,110030.0,0.1817686]
[1756226542089,0.73491643,110040.0,110020.0,0.34151512]
[1756226543120,0.1817686,110030.0,110020.0,0.34151512]
[1756226543474,0.72639812,110040.0,110020.0,0.34151512]
[1756226543682,0.1817686,110030.0,110020.0,0.34151512]
[1756226544524,0.72639812,110040.0,110020.0,0.34151512]
[1756226544706,0.1817686,110030.0,110020.0,0.34357512]
[1756226545084,0.1817686,110030.0,110020.0,0.34151512]
[1756226545364,0.1817686,110030.0,110020.0,0.34251512]
[1756226546535,0.72501226,110030.0,110020.0,0.001]
[1756226546737,1.22141226,110030.0,110020.0,0.001]
[1756226547101,1.32137877,110030.0,110020.0,0.001]
[1756226547308,1.22993348,110030.0,110020.0,0.001]
[1756226547503,1.24955728,110030.0,110020.0,0.001]
[1756226547717,1.24955728,110030.0,110000.0,0.07313]
[1756226547718,0.18180165,110010.0,110000.0,0.07313]
[1756226547954,1.01010773,110030.0,110020.0,0.18178512]
[1756226547955,0.34,110030.0,110020.0,0.18178512]
[1756226548142,0.73448572,110040.0,110020.0,0.34345512]
[1756226548351,0.74300273,110040.0,110020.0,0.34345512]
[1756226548566,0.001,110030.0,110020.0,0.34345512]
[1756226549173,0.001,110030.0,110020.0,0.43491714]
[1756226549957,0.18215279,110040.0,110030.0,0.1817686]
[1756226550299,0.18415279,110040.0,110030.0,0.1849786]
[1756226550526,0.18415279,110040.0,110030.0,0.1870386]
[1756226550652,0.18215279,110040.0,110030.0,0.1870386]
[1756226550857,0.0004,110040.0,110030.0,0.1870386]
[1756226551305,0.18215209,110040.0,110030.0,0.1870386]
[1756226551792,0.18315209,110040.0,110030.0,0.1870386]
[1756226552083,0.0024,110040.0,110030.0,0.1870386]
[1756226552306,0.0024,110040.0,110030.0,0.2288006]
[1756226552897,0.18315209,110040.0,110030.0,0.2288006]
[1756226553328,0.18415209,110040.0,110030.0,0.2288006]
[1756226553784,0.18215209,110040.0,110030.0,0.2288006]
[1756226553930,0.18315209,110040.0,110030.0,0.2288006]
[1756226554111,0.18415209,110040.0,110030.0,0.2288006]
[1756226554307,0.18315209,110040.0,110030.0,0.2288006]
[1756226555284,0.18175209,110040.0,110030.0,0.2288006]
[1756226555697,0.18175209,110040.0,110030.0,0.047032]
[1756226555896,0.18175209,110040.0,110030.0,0.3874727]
[1756226556248,0.18175209,110040.0,110030.0,0.3852006]
[1756226556975,1.05903915,110050.0,110030.0,0.3852006]
[1756226557176,1.06756135,110050.0,110030.0,0.3852006]
[1756226557392,0.18175209,110040.0,110030.0,0.3852006]
[1756226559973,0.50291157,110050.0,110040.0,0.18175209]
[1756226560175,0.00852219,110050.0,110040.0,0.18697209]
[1756226560346,0.1910055,110060.0,110040.0,0.18697209]
[1756226560689,0.18173557,110050.0,110040.0,0.18376209]
[1756226560885,0.74713308,110060.0,110040.0,0.34016209]
[1756226561039,0.18173557,110050.0,110040.0,0.34016209]
[1756226561642,0.18173557,110050.0,110040.0,0.34337209]
[1756226561844,0.18273557,110050.0,110040.0,0.34337209]
[1756226564077,0.001,110050.0,110040.0,0.34337209]
[1756226564318,0.18273557,110050.0,110040.0,0.34337209]
[1756226565004,0.001,110050.0,110040.0,0.43483411]
[1756226565200,0.001,110050.0,110040.0,0.43479411]
[1756226566710,1.07804713,110060.0,110050.0,0.18173557]
[1756226566862,1.07804713,110060.0,110050.0,0.18695557]
[1756226567264,1.07804713,110060.0,110050.0,0.00321]
[1756226567493,1.07804713,110060.0,110050.0,0.15957]
[1756226567694,0.18173557,110050.0,110040.0,0.09467202]
[1756226567896,0.73786315,110050.0,110040.0,0.15957]
[1756226568562,0.73786315,110050.0,110040.0,0.15636]
[1756226568772,0.73786315,110050.0,110030.0,0.29665492]
[1756226568773,0.18175209,110040.0,110030.0,0.29665492]
[1756226568962,0.73787967,110040.0,110030.0,0.044972]
[1756226569105,0.73787967,110040.0,110030.0,0.201332]
[1756226569312,0.18175209,110040.0,110030.0,0.2267406]
[1756226569648,0.33809557,110050.0,110030.0,0.3851106]
[1756226569649,0.89422315,110050.0,110030.0,0.3851106]
[1756226569856,0.89422315,110050.0,110030.0,0.3819006]
[1756226570031,0.89422315,110050.0,110040.0,0.00321]
[1756226570444,0.33809557,110050.0,110040.0,0.00522]
[1756226570640,0.89422315,110050.0,110040.0,0.00321]
[1756226571233,0.89422315,110050.0,110040.0,0.00321]
[1756226571438,0.89422315,110050.0,110040.0,0.18697209]
[1756226571439,0.73786315,110050.0,110040.0,0.18697209]
[1756226572833,0.53109221,110060.0,110050.0,0.18173557]
[1756226573036,1.24357979,110060.0,110040.0,0.27321411]
[1756226573186,1.24357979,110060.0,110050.0,0.00321]
[1756226574938,1.24457979,110060.0,110050.0,0.18494557]
[1756226575334,1.24457979,110060.0,110050.0,0.00321]
[1756226575533,1.24557979,110060.0,110050.0,0.00321]
[1756226576888,0.18173557,110050.0,110030.0,0.1142816]
[1756226577086,0.73786315,110050.0,110040.0,0.15957]
[1756226577322,0.18173557,110050.0,110040.0,0.43479411]
[1756226577596,0.18173557,110050.0,110040.0,0.00522]
[1756226577829,0.18173557,110050.0,110040.0,0.16158]
[1756226578037,0.73786315,110050.0,110040.0,0.15957]
[1756226578215,0.73786315,110050.0,110040.0,0.16158]
[1756226579370,0.18173557,110050.0,110040.0,0.16158]
[1756226579563,0.73786315,110050.0,110040.0,0.16158]
[1756226580226,0.73786315,110050.0,110040.0,0.00522]
[1756226580529,0.73786315,110050.0,110040.0,0.00321]
[1756226581281,0.73786315,110050.0,110040.0,0.18697209]
[1756226581727,0.73786315,110050.0,110040.0,0.00522]
[1756226582274,0.18173557,110050.0,110040.0,0.18697209]
[1756226582477,1.08721979,110060.0,110040.0,0.18697209]
[1756226582691,1.25206479,110060.0,110050.0,0.00321]
[1756226583735,1.25206479,110060.0,110030.0,0.3889351]
[1756226583958,0.18174664,110050.0,110040.0,0.0054819]
[1756226584321,0.73787422,110050.0,110040.0,0.00321]
[1756226584470,0.73787422,110050.0,110040.0,0.00522]
[1756226584672,0.73787422,110050.0,110040.0,0.18697209]
[1756226586914,0.73787422,110050.0,110040.0,0.16154]
[1756226588280,0.73787422,110050.0,110040.0,0.00522]
[1756226588508,0.18175209,110040.0,110030.0,0.09461202]
[1756226588712,0.73787967,110040.0,110030.0,0.43484062]
[1756226589165,0.89419422,110050.0,110030.0,0.43484062]
[1756226589384,0.18175209,110040.0,110030.0,0.43484062]
[1756226589638,0.18175209,110040.0,110030.0,0.43169062]
[1756226589864,0.87132515,110050.0,110030.0,0.43269062]
[1756226590072,0.18175209,110040.0,110030.0,0.43684062]
[1756226590506,0.18175209,110040.0,110030.0,0.47699308]
[1756226590828,0.03945209,110040.0,110030.0,0.47499308]
[1756226591039,0.31519757,110050.0,110030.0,0.47499308]
[1756226591244,0.18175209,110040.0,110030.0,0.47499308]
[1756226591802,0.18175209,110040.0,110030.0,0.47599308]
[1756226592006,0.18175209,110040.0,110030.0,0.47699308]
[1756226592759,0.18175209,110040.0,110030.0,0.47599308]
[1756226592967,0.87132515,110050.0,110040.0,0.18175209]
[1756226593171,0.87985654,110050.0,110040.0,0.18704209]
[1756226593539,0.71500515,110050.0,110040.0,0.18704209]
[1756226593826,0.72353639,110050.0,110040.0,0.00315]
[1756226594027,0.71500515,110050.0,110040.0,0.00529]
[1756226594432,0.71500515,110050.0,110040.0,0.18704209]
[1756226594853,0.71500515,110050.0,110040.0,0.00529]
[1756226595715,0.71500515,110050.0,110040.0,0.00315]
[1756226596343,0.15887757,110050.0,110040.0,0.00529]
[1756226596564,0.71500515,110050.0,110040.0,0.00529]
[1756226596767,0.71500515,110050.0,110040.0,0.18704209]
[1756226597169,0.71500515,110050.0,110040.0,0.00529]
[1756226598165,0.71500515,110050.0,110040.0,0.00315]
[1756226598547,0.15887757,110050.0,110040.0,0.00315]
[1756226598746,0.71500515,110050.0,110040.0,0.00315]
[1756226600528,0.18175209,110040.0,110030.0,0.04330246]
[1756226600789,0.18175209,110040.0,110020.0,0.19087437]
[1756226600790,0.1817686,110030.0,110020.0,0.19402437]
[1756226601002,0.73789618,110030.0,110020.0,0.15943]
[1756226601379,0.73789618,110030.0,110020.0,0.16157]
[1756226601798,0.7474165,110030.0,110020.0,0.16157]
[1756226602131,0.7474165,110030.0,110020.0,0.16457]
[1756226602326,0.7474165,110030.0,110020.0,0.34635512]
[1756226602548,0.19128892,110030.0,110020.0,0.34635512]
[1756226603364,0.16796434,110050.0,110030.0,0.1817686]
[1756226603611,0.67273062,110050.0,110040.0,0.18175209]
[1756226603815,0.50740385,110050.0,110040.0,0.34328209]
[1756226604013,0.34852628,110050.0,110040.0,0.34328209]
[1756226604224,0.19026185,110050.0,110040.0,0.34328209]
[1756226604426,0.19109221,110060.0,110040.0,0.34328209]
[1756226604628,1.09574491,110060.0,110050.0,0.18488557]
[1756226604916,1.10523619,110060.0,110050.0,0.18702557]
[1756226605120,1.10523619,110060.0,110050.0,0.18488557]
[1756226605346,1.10523619,110060.0,110050.0,0.18702557]
[1756226605696,0.54910861,110060.0,110050.0,0.18702557]
[1756226606131,0.21010861,110060.0,110050.0,0.18702557]
[1756226606367,0.76623619,110060.0,110050.0,0.18702557]
[1756226607404,0.01930311,110060.0,110050.0,0.18702557]
[1756226607799,0.01930311,110060.0,110050.0,0.27848759]
[1756226608006,0.02030311,110060.0,110050.0,0.27848759]
[1756226608213,0.20202217,110060.0,110050.0,0.27848759]
[1756226609276,1.24340291,110070.0,110050.0,0.27848759]
[1756226609479,0.18171906,110060.0,110050.0,0.27848759]
[1756226610510,0.18171906,110060.0,110050.0,0.09675202]
[1756226610669,0.18171906,110060.0,110050.0,0.27848759]
[1756226612077,0.18271906,110060.0,110050.0,0.27848759]
[1756226612809,0.19240704,110060.0,110050.0,0.27848759]
[1756226615699,0.74853462,110060.0,110050.0,0.15624]
[1756226615910,0.74853462,110060.0,110050.0,0.34326557]
[1756226616686,0.19240704,110060.0,110050.0,0.34326557]
[1756226617736,0.74853462,110060.0,110050.0,0.34326557]
[1756226618509,0.19240704,110060.0,110050.0,0.34326557]
[1756226618720,0.74853462,110060.0,110050.0,0.34326557]
[1756226619683,0.19240704,110060.0,110050.0,0.34326557]
[1756226620442,0.01068798,110060.0,110050.0,0.34326557]
[1756226620851,0.19240704,110060.0,110050.0,0.34326557]
[1756226621030,0.19240704,110060.0,110050.0,0.89939315]
[1756226621239,0.19240704,110060.0,110050.0,0.34326557]
[1756226624164,0.19240704,110060.0,110050.0,0.89939315]
[1756226624760,0.19240704,110060.0,110050.0,0.34326557]
[1756226630870,0.001,110060.0,110050.0,0.43476759]
[1756226631289,0.001,110060.0,110050.0,0.99089517]
[1756226631492,0.001,110060.0,110050.0,0.43476759]
[1756226631702,0.001,110060.0,110050.0,0.99089517]
[1756226632507,0.001,110060.0,110050.0,0.27852759]
[1756226632753,0.001,110060.0,110050.0,0.99081517]
[1756226633885,0.001,110060.0,110050.0,0.83465517]
[1756226634117,0.001,110060.0,110050.0,0.99081517]
[1756226637110,0.001,110060.0,110050.0,0.43468759]
[1756226637257,0.001,110060.0,110050.0,0.99081517]
[1756226637671,0.001,110060.0,110050.0,0.27852759]
[1756226637980,0.001,110060.0,110050.0,0.43468759]
[1756226638705,0.18271906,110060.0,110050.0,0.27852759]
[1756226638920,0.73884664,110060.0,110050.0,0.1562]
[1756226639564,0.73884664,110060.0,110050.0,4e-05]
[1756226639742,0.73884664,110060.0,110050.0,0.1562]
[1756226641353,0.89500664,110060.0,110050.0,4e-05]
[1756226641782,0.90353071,110060.0,110050.0,4e-05]
[1756226642841,0.73884664,110060.0,110050.0,0.18675557]
[1756226643061,0.73884664,110060.0,110050.0,0.00502]
[1756226643405,0.18271906,110060.0,110050.0,0.00502]
[1756226643614,0.73884664,110060.0,110050.0,0.00502]
[1756226643844,0.73884664,110060.0,110050.0,4e-05]
[1756226644041,0.18271906,110060.0,110050.0,0.00302]
[1756226644237,0.73884664,110060.0,110050.0,0.00302]
[1756226645181,0.73884664,110060.0,110050.0,0.00502]
[1756226645577,0.73884664,110060.0,110050.0,0.00302]
[1756226646043,0.73884664,110060.0,110050.0,4e-05]
[1756226646254,0.74736998,110060.0,110050.0,4e-05]
[1756226648827,0.74736925,110060.0,110050.0,4e-05]
[1756226650086,0.74736925,110060.0,110050.0,0.00322]
[1756226653328,0.74736925,110060.0,110050.0,0.00521]
[1756226654491,0.74736925,110060.0,110050.0,0.00322]
[1756226654700,0.74736925,110060.0,110050.0,4e-05]
[1756226656607,0.74736925,110060.0,110050.0,0.00322]
[1756226656809,0.73884664,110060.0,110050.0,0.00322]
[1756226657161,0.74736686,110060.0,110050.0,4e-05]
[1756226657367,0.74736686,110060.0,110050.0,0.00322]
[1756226657754,0.74736686,110060.0,110050.0,4e-05]
[1756226658610,0.74736686,110060.0,110050.0,0.00322]
[1756226658861,0.74736634,110060.0,110050.0,0.00322]
[1756226659246,0.89492664,110060.0,110050.0,0.00322]
[1756226659470,0.90344586,110060.0,110050.0,0.00322]
[1756226660566,0.34731828,110060.0,110050.0,0.00322]
[1756226660769,0.90344586,110060.0,110050.0,0.00322]
[1756226661013,0.90344586,110060.0,110050.0,4e-05]
[1756226661444,0.90344586,110060.0,110050.0,0.00322]
[1756226663270,0.74736586,110060.0,110050.0,0.00322]
[1756226663473,0.71100949,110060.0,110050.0,0.00322]
[1756226663810,0.89272855,110060.0,110050.0,0.00322]
[1756226664022,0.33779906,110060.0,110050.0,0.00521]
[1756226664223,0.89392664,110060.0,110050.0,0.00521]
[1756226665562,0.89392664,110060.0,110050.0,4e-05]
[1756226666006,0.89392664,110060.0,110050.0,0.00322]
[1756226666329,0.89392664,110060.0,110050.0,4e-05]
[1756226666747,0.73784664,110060.0,110050.0,0.00322]
[1756226666948,0.89392664,110060.0,110050.0,0.00322]
[1756226668550,1.32538866,110060.0,110050.0,4e-05]
[1756226668751,1.98110216,110060.0,110050.0,4e-05]
[1756226668956,0.81276336,110060.0,110050.0,4e-05]
[1756226669326,1.36889094,110060.0,110050.0,4e-05]
[1756226669510,1.39621994,110060.0,110050.0,4e-05]
[1756226670428,1.38978149,110060.0,110050.0,4e-05]
[1756226670801,1.39078149,110060.0,110050.0,4e-05]
[1756226672557,6.80199061,110060.0,110050.0,4e-05]
[1756226672756,6.85178663,110060.0,110050.0,4e-05]
[1756226672955,6.83128995,110060.0,110050.0,4e-05]
[1756226673552,6.86399797,110060.0,110050.0,4e-05]
[1756226673891,6.86499797,110060.0,110050.0,4e-05]
[1756226674090,6.86399797,110060.0,110050.0,4e-05]
[1756226674620,6.86499797,110060.0,110050.0,4e-05]
[1756226675129,6.83228995,110060.0,110050.0,4e-05]
[1756226675612,6.84080543,110060.0,110050.0,4e-05]
[1756226675870,6.83980543,110060.0,110050.0,4e-05]
[1756226676106,6.84180543,110060.0,110050.0,4e-05]
[1756226678757,5.43184148,110060.0,110050.0,4e-05]
[1756226678969,6.72580043,110060.0,110050.0,4e-05]
[1756226679176,6.01363285,110060.0,110050.0,4e-05]
[1756226679605,6.16967285,110060.0,110050.0,0.00309]
[1756226679764,6.16967285,110060.0,110050.0,0.00523]
[1756226680180,6.01363285,110060.0,110050.0,0.00523]
[1756226680376,6.16967285,110060.0,110050.0,0.00523]
[1756226680575,6.16328994,110060.0,110050.0,0.00523]
[1756226680782,5.66724994,110060.0,110050.0,0.00523]
[1756226681126,6.14484092,110060.0,110050.0,0.00523]
[1756226681500,6.14684092,110060.0,110050.0,0.00523]
[1756226681708,6.12718611,110060.0,110050.0,0.00523]
[1756226681932,6.14478916,110060.0,110050.0,0.00523]
[1756226682160,6.14578916,110060.0,110050.0,0.00523]
[1756226682334,6.12618611,110060.0,110050.0,0.00523]
[1756226682542,6.14579,110060.0,110050.0,0.00523]
[1756226683740,6.24541887,110060.0,110050.0,4e-05]
[1756226684056,6.16323902,110060.0,110050.0,4e-05]
[1756226684233,6.15472847,110060.0,110050.0,4e-05]
[1756226684436,6.16323797,110060.0,110050.0,4e-05]
[1756226685518,6.15472847,110060.0,110050.0,4e-05]
[1756226685748,6.16323845,110060.0,110050.0,4e-05]
[1756226687120,6.16324266,110060.0,110050.0,4e-05]
[1756226687538,6.17746487,110060.0,110050.0,4e-05]
[1756226689146,6.1774662,110060.0,110050.0,4e-05]